bitfinex/quotes_BTCUSD_20250515
["timestamp","ask_amount","ask_price","bid_price","bid_amount"]
[1747313692904,0.26611695,102600.0,102590.0,0.003]
[1747313693080,0.24662436,102600.0,102590.0,0.20769821]
[1747313693274,0.25637094,102600.0,102590.0,0.20769821]
[1747313693509,0.24662436,102600.0,102590.0,0.29463201]
[1747313693750,0.24662436,102600.0,102590.0,0.30337907]
[1747313694129,0.24662436,102600.0,102590.0,0.30137907]
[1747313694538,0.24662436,102600.0,102590.0,0.29163201]
[1747313694714,0.24662436,102600.0,102590.0,0.31112622]
[1747313694916,0.24662436,102600.0,102590.0,0.32087318]
[1747313695119,0.24662389,102600.0,102590.0,0.32087318]
[1747313695345,0.25637028,102600.0,102590.0,0.31112622]
[1747313695572,0.25637028,102600.0,102590.0,0.32087318]
[1747313695786,0.25637028,102600.0,102590.0,0.30137926]
[1747313696003,0.26611686,102600.0,102590.0,0.31112641]
[1747313696196,0.26611686,102600.0,102590.0,0.29163201]
[1747313696433,0.26611686,102600.0,102590.0,0.30137926]
[1747313696624,0.26611686,102600.0,102590.0,0.31112641]
[1747313697404,0.25637028,102600.0,102590.0,0.31112622]
[1747313697586,0.24662389,102600.0,102590.0,0.32087309]
[1747313698324,0.24662389,102600.0,102590.0,0.31112622]
[1747313698631,0.25637038,102600.0,102590.0,0.31112632]
[1747313698874,0.25637028,102600.0,102590.0,0.30137926]
[1747313699086,0.26611677,102600.0,102590.0,0.29163182]
[1747313699297,0.25637028,102600.0,102590.0,0.30137888]
[1747313699509,0.25637028,102600.0,102590.0,0.29163192]
[1747313699717,0.26611686,102600.0,102590.0,0.30137907]
[1747313699897,0.26611686,102600.0,102590.0,0.29163192]
[1747313700106,0.26611686,102600.0,102590.0,0.30137907]
[1747313700443,0.25637028,102600.0,102590.0,0.31112613]
[1747313700660,0.25637038,102600.0,102590.0,0.31112613]
[1747313701076,0.24662389,102600.0,102590.0,0.320873]
[1747313701291,0.25637028,102600.0,102590.0,0.28188467]
[1747313701514,0.26611686,102600.0,102590.0,0.29163192]
[1747313701765,0.25637028,102600.0,102590.0,0.30137907]
[1747313701977,0.26611686,102600.0,102590.0,0.30137907]
[1747313702318,0.26611686,102600.0,102590.0,0.29163192]
[1747313702563,0.25629194,102590.0,102580.0,0.21441906]
[1747313702732,0.2465446,102590.0,102580.0,0.23391498]
[1747313703138,0.00974677,102590.0,102580.0,0.23391498]
[1747313703353,0.01949383,102590.0,102580.0,0.23391498]
[1747313703712,0.24652465,102600.0,102590.0,0.2046983]
[1747313703920,0.24652465,102600.0,102590.0,0.2670792]
[1747313703921,0.24652408,102600.0,102590.0,0.2670792]
[1747313704111,0.25627057,102600.0,102590.0,0.2670792]
[1747313704340,0.25627057,102600.0,102590.0,0.27682645]
[1747313704522,0.25627057,102600.0,102590.0,0.25733214]
[1747313704962,0.25627057,102600.0,102590.0,0.2475848]
[1747313705091,0.25627057,102600.0,102590.0,0.26707939]
[1747313705292,0.25627057,102600.0,102590.0,0.25733214]
[1747313705645,0.25627057,102600.0,102590.0,0.26707939]
[1747313705847,0.25627057,102600.0,102590.0,0.25733214]
[1747313706061,0.24652456,102600.0,102590.0,0.0428865]
[1747313706221,0.01949373,102590.0,102580.0,0.21441906]
[1747313706422,0.22419118,102590.0,102580.0,0.23391479]
[1747313706875,0.02924041,102590.0,102580.0,0.23391479]
[1747313707062,0.01949345,102590.0,102580.0,0.23391479]
[1747313707419,0.02924041,102590.0,102580.0,0.23491479]
[1747313707751,0.23677797,102600.0,102590.0,0.20469811]
[1747313707999,0.25627038,102600.0,102590.0,0.20469811]
[1747313708469,0.00974573,102600.0,102590.0,0.22419213]
[1747313708908,0.25594881,102610.0,102600.0,0.20467835]
[1747313709118,0.35325821,102610.0,102600.0,0.20467835]
[1747313709342,0.35325812,102610.0,102600.0,0.2538638]
[1747313709565,0.35325812,102610.0,102600.0,0.24411731]
[1747313709780,0.35325812,102610.0,102600.0,0.2538637]
[1747313709998,0.35325812,102610.0,102600.0,0.2538638]
[1747313710220,0.34351258,102610.0,102600.0,0.2636101]
[1747313710437,0.34351258,102610.0,102600.0,0.03943896]
[1747313710652,0.35425821,102610.0,102600.0,0.03943896]
[1747313711093,0.35625821,102610.0,102600.0,0.03943896]
[1747313711729,0.35625821,102610.0,102600.0,0.04918554]
[1747313712177,0.35625821,102610.0,102600.0,0.03943896]
[1747313712399,0.34015821,102610.0,102600.0,0.03943896]
[1747313712610,0.32445821,102610.0,102600.0,0.03943896]
[1747313713261,0.31471315,102610.0,102600.0,0.03943896]
[1747313713475,0.31471315,102610.0,102600.0,0.24411712]
[1747313713681,0.22714872,102610.0,102600.0,0.24411722]
[1747313714128,0.22714872,102610.0,102600.0,0.25386361]
[1747313714349,0.21740318,102610.0,102600.0,0.25386361]
[1747313714588,0.21740318,102610.0,102600.0,0.26360991]
[1747313714811,0.22714872,102610.0,102600.0,0.26360991]
[1747313715156,0.22714872,102610.0,102600.0,0.25386361]
[1747313715370,0.22714872,102610.0,102600.0,0.03943896]
[1747313715585,0.22714872,102610.0,102600.0,0.2538638]
[1747313715804,0.22714872,102610.0,102600.0,0.03943896]
[1747313716090,0.25020366,102610.0,102600.0,0.03943896]
[1747313716305,0.21442361,102600.0,102590.0,0.23393957]
[1747313716508,0.21442351,102600.0,102590.0,0.23393966]
[1747313716718,0.01949355,102590.0,102580.0,0.3169313]
[1747313716900,0.23393843,102590.0,102580.0,0.31693225]
[1747313717045,0.24368577,102590.0,102580.0,0.27598434]
[1747313717240,0.24368577,102590.0,102580.0,0.29548045]
[1747313717453,0.23393843,102590.0,102580.0,0.29548045]
[1747313717654,0.23393843,102590.0,102580.0,0.30522836]
[1747313717968,0.23393966,102590.0,102580.0,0.25653495]
[1747313718335,0.24584536,102590.0,102580.0,0.06356518]
[1747313718531,0.24584536,102590.0,102580.0,0.002]
[1747313718883,0.23609811,102590.0,102580.0,0.002]
[1747313719090,0.61208022,102590.0,102580.0,0.003]
[1747313719547,0.33340751,102590.0,102580.0,0.003]
[1747313719964,0.2242136,102580.0,102570.0,0.27688285]
[1747313720167,0.21446531,102580.0,102570.0,0.26713389]
[1747313720371,0.22421313,102580.0,102570.0,0.29923389]
[1747313720566,0.01949535,102580.0,102570.0,0.30303171]
[1747313720764,0.02924326,102580.0,102570.0,0.30303124]
[1747313721002,0.22421303,102580.0,102570.0,0.29328247]
[1747313721176,0.24996189,102580.0,102570.0,0.24778008]
[1747313721377,0.24996189,102580.0,102570.0,0.25752942]
[1747313721708,0.2242135,102580.0,102570.0,0.27702771]
[1747313721910,0.23396179,102580.0,102570.0,0.26727866]
[1747313722155,0.23396255,102580.0,102570.0,0.0430422]
[1747313722358,0.24646654,102580.0,102570.0,0.24778022]
[1747313722494,0.24646654,102580.0,102570.0,0.0430422]
[1747313722695,0.24646654,102580.0,102570.0,0.05279163]
[1747313723094,0.24646654,102580.0,102570.0,0.24778041]
[1747313723515,0.24646654,102580.0,102570.0,0.05279163]
[1747313723723,0.24646654,102580.0,102570.0,0.0430422]
[1747313724352,0.24646654,102580.0,102570.0,0.0001442]
[1747313724353,0.61270036,102580.0,102570.0,0.0001442]
[1747313724978,0.69061611,102580.0,102570.0,0.0001442]
[1747313725449,0.70029441,102580.0,102570.0,0.0001442]
[1747313725791,0.62237866,102580.0,102570.0,0.0001442]
[1747313726819,0.62337866,102580.0,102570.0,0.0001442]
[1747313727050,0.62537866,102580.0,102570.0,0.0001442]
[1747313728725,1.06268806,102580.0,102570.0,0.00307849]
[1747313728976,0.96537866,102580.0,102570.0,0.00307849]
[1747313732624,1.32196712,102580.0,102570.0,0.00307849]
[1747313732885,1.33650797,102580.0,102570.0,0.00307849]
[1747313733103,1.26859222,102580.0,102570.0,0.00307849]
[1747313733326,1.35622332,102580.0,102570.0,0.00307849]
[1747313734044,1.35522332,102580.0,102570.0,0.00307849]
[1747313734274,1.35822332,102580.0,102570.0,0.00307849]
[1747313734972,1.36361392,102580.0,102570.0,0.00307849]
[1747313735207,0.97524121,102580.0,102570.0,0.00307849]
[1747313735446,1.19048121,102580.0,102570.0,0.00307849]
[1747313735713,1.38806036,102580.0,102570.0,0.00307849]
[1747313735946,1.39306036,102580.0,102570.0,0.00307849]
[1747313736869,1.39302036,102580.0,102570.0,0.00307849]
[1747313737982,1.45155036,102580.0,102570.0,0.00307849]
[1747313743188,1.39302036,102580.0,102570.0,0.00307849]
[1747313746816,1.67169307,102580.0,102570.0,0.00307849]
[1747313747257,1.39302036,102580.0,102570.0,0.00307849]
[1747313747581,1.49032976,102580.0,102570.0,0.00307849]
[1747313749792,1.39302036,102580.0,102570.0,0.00307849]
[1747313750010,1.81414036,102580.0,102570.0,0.00307849]
[1747313752970,1.87267036,102580.0,102570.0,0.00307849]
[1747313754845,2.16588392,102580.0,102570.0,0.00307849]
[1747313755014,2.17588392,102580.0,102570.0,0.00307849]
[1747313755247,2.27319332,102580.0,102570.0,0.00307849]
[1747313755439,2.30246632,102580.0,102570.0,0.00307849]
[1747313762101,1.92540421,102580.0,102570.0,0.00307849]
[1747313762284,1.92540421,102580.0,102540.0,0.0315]
[1747313762285,1.12347223,102550.0,102530.0,0.0313]
[1747313762490,1.00115575,102540.0,102530.0,0.03144426]
[1747313762687,1.00029729,102540.0,102530.0,0.03144426]
[1747313763190,1.46890669,102540.0,102530.0,0.00014426]
[1747313763471,1.8061094,102540.0,102530.0,0.00014426]
[1747313763702,2.24181025,102540.0,102530.0,0.00014426]
[1747313764175,0.8332643,102520.0,102510.0,0.0305]
[1747313764383,1.1452137,102520.0,102510.0,0.03098082]
[1747313764794,1.3597337,102520.0,102510.0,0.03098082]
[1747313764993,1.63840641,102520.0,102510.0,0.00048082]
[1747313765213,1.7355708,102520.0,102510.0,0.00048082]
[1747313765424,1.75517713,102520.0,102510.0,0.00048082]
[1747313765640,1.78591798,102520.0,102510.0,0.00048082]
[1747313765848,1.81663944,102520.0,102510.0,0.00048082]
[1747313766983,1.81763944,102520.0,102510.0,0.00348082]
[1747313767690,1.91494884,102520.0,102510.0,0.00348082]
[1747313768154,1.85641884,102520.0,102510.0,0.00348082]
[1747313769457,0.76220328,102510.0,102500.0,0.00095]
[1747313769667,0.87405353,102510.0,102500.0,0.00095]
[1747313770812,0.90625353,102510.0,102500.0,0.00095]
[1747313771002,0.90725353,102510.0,102500.0,0.00695]
[1747313771208,1.00441792,102510.0,102500.0,0.00695]
[1747313771420,0.2146544,102490.0,102480.0,0.0155]
[1747313771658,1.01979651,102490.0,102480.0,0.0314]
[1747313772084,0.59063651,102490.0,102480.0,0.0314]
[1747313772284,0.80535651,102490.0,102480.0,0.0314]
[1747313772524,0.80535651,102490.0,102480.0,0.23631793]
[1747313772736,0.79559994,102490.0,102480.0,0.0314]
[1747313772943,0.79559994,102490.0,102480.0,0.0984524]
[1747313773352,0.79559994,102490.0,102480.0,0.0314]
[1747313773769,0.79559994,102490.0,102480.0,0.0324]
[1747313775878,0.89559994,102490.0,102480.0,0.0324]
[1747313777429,0.89563994,102490.0,102480.0,0.0324]
[1747313780676,0.68087994,102490.0,102480.0,0.0324]
[1747313780908,0.68087994,102490.0,102480.0,0.05564]
[1747313781547,0.68087994,102490.0,102480.0,0.0324]
[1747313788219,0.73940994,102490.0,102480.0,0.0324]
[1747313788439,0.68087994,102490.0,102480.0,0.0324]
[1747313793000,0.47598211,102490.0,102480.0,0.0324]
[1747313793276,0.1,102490.0,102480.0,0.59683288]
[1747313793473,0.30489717,102490.0,102480.0,0.32486943]
[1747313793693,0.32441125,102490.0,102480.0,0.1297094]
[1747313793902,0.60308396,102490.0,102480.0,0.0324]
[1747313794107,0.58357073,102490.0,102480.0,0.0324]
[1747313794319,0.68088013,102490.0,102480.0,0.0324]
[1747313795371,1.10892013,102490.0,102480.0,0.0324]
[1747313803086,0.89484013,102490.0,102480.0,0.0324]
[1747313806748,0.89484013,102490.0,102480.0,0.0165]
[1747313806953,0.89484013,102490.0,102480.0,0.001]
[1747313807201,1.26534013,102490.0,102480.0,0.001]
[1747313807359,1.25004013,102490.0,102480.0,0.001]
[1747313808457,1.23484013,102490.0,102480.0,0.001]
[1747313810980,1.44892013,102490.0,102480.0,0.001]
[1747313813558,1.57702953,102490.0,102480.0,0.001]
[1747313814004,1.47972013,102490.0,102480.0,0.001]
[1747313814841,1.46472013,102490.0,102480.0,0.001]
[1747313815038,1.44892013,102490.0,102480.0,0.001]
[1747313816545,1.44848013,102490.0,102480.0,0.001]
[1747313818308,1.50701013,102490.0,102480.0,0.001]
[1747313818516,1.44848013,102490.0,102480.0,0.00202145]
[1747313820280,0.40220742,102490.0,102480.0,0.03472145]
[1747313820489,0.40220742,102490.0,102480.0,0.0581936]
[1747313821999,0.41196333,102490.0,102480.0,0.0581936]
[1747313822206,0.33416744,102490.0,102480.0,0.0581936]
[1747313822446,0.32441125,102490.0,102480.0,0.0581936]
[1747313822651,0.31465478,102490.0,102480.0,0.0581936]
[1747313824565,0.29514098,102490.0,102480.0,0.0581936]
[1747313824776,0.29514098,102490.0,102480.0,0.27482058]
[1747313825012,0.1,102490.0,102480.0,0.28262648]
[1747313825463,0.29514098,102490.0,102480.0,0.28262648]
[1747313825653,0.30489717,102490.0,102480.0,0.27286915]
[1747313825848,0.30489717,102490.0,102480.0,0.28262658]
[1747313826509,0.32441021,102490.0,102480.0,0.0581936]
[1747313826714,0.33416706,102490.0,102480.0,0.0581936]
[1747313826936,0.5933272,102490.0,102480.0,0.03472145]
[1747313827149,0.41196389,102490.0,102480.0,0.03472145]
[1747313827370,0.40220676,102490.0,102480.0,0.03472145]
[1747313827631,0.42172018,102490.0,102480.0,0.04447945]
[1747313827814,0.42172018,102490.0,102480.0,0.09234867]
[1747313828021,0.42172018,102490.0,102480.0,0.08259067]
[1747313828432,0.43147713,102490.0,102480.0,0.08259067]
[1747313828634,0.33416773,102490.0,102480.0,0.08259067]
[1747313830268,0.32441135,102490.0,102480.0,0.08259067]
[1747313832076,0.1,102490.0,102480.0,0.2777507]
[1747313832278,0.30489717,102490.0,102480.0,0.29726622]
[1747313832481,0.31465345,102490.0,102480.0,0.29726622]
[1747313832697,0.31465345,102490.0,102480.0,0.29726641]
[1747313832906,0.31465345,102490.0,102480.0,0.31678155]
[1747313833498,0.31465345,102490.0,102480.0,0.30702403]
[1747313833672,0.33416668,102490.0,102480.0,0.2875086]
[1747313834047,0.33416658,102490.0,102480.0,0.30702441]
[1747313834456,0.33416753,102490.0,102480.0,0.08259067]
[1747313834592,0.32441049,102490.0,102480.0,0.08259067]
[1747313834795,0.32441049,102490.0,102480.0,0.10210657]
[1747313834991,0.32441049,102490.0,102480.0,0.2972666]
[1747313835192,0.32441049,102490.0,102480.0,0.2875087]
[1747313835409,0.1,102490.0,102480.0,0.31678155]
[1747313835869,0.31465364,102490.0,102480.0,0.2972666]
[1747313836006,0.30489717,102490.0,102480.0,0.30702422]
[1747313836208,0.30489717,102490.0,102480.0,0.32653917]
[1747313836431,0.30489717,102490.0,102480.0,0.30702374]
[1747313836656,0.30489717,102490.0,102480.0,0.31678117]
[1747313837254,0.30489717,102490.0,102480.0,0.3265385]
[1747313837903,0.30489717,102490.0,102480.0,0.31678117]
[1747313838112,0.1,102490.0,102480.0,0.3265385]
[1747313838317,0.29514098,102490.0,102480.0,0.3265385]
[1747313838878,0.1,102490.0,102480.0,0.3265385]
[1747313844289,0.1,102490.0,102480.0,0.32551705]
[1747313844495,0.1,102490.0,102480.0,0.3265285]
[1747313844987,0.29514098,102490.0,102480.0,0.31677117]
[1747313845189,0.1,102490.0,102480.0,0.3265285]
[1747313846738,0.1,102490.0,102480.0,0.7638379]
[1747313847584,0.1,102490.0,102480.0,0.7628379]
[1747313847812,0.1,102490.0,102480.0,0.7698379]
[1747313848017,0.101,102490.0,102480.0,0.7758379]
[1747313849088,0.101,102490.0,102480.0,0.7688379]
[1747313849262,0.101,102490.0,102480.0,0.7698379]
[1747313849263,0.1,102490.0,102480.0,0.7698379]
[1747313849466,0.101,102490.0,102480.0,0.7768379]
[1747313852966,0.101,102490.0,102480.0,0.79137875]
[1747313853377,0.101,102490.0,102480.0,0.45137875]
[1747313861113,0.101,102490.0,102480.0,0.87597875]
[1747313862544,0.101,102490.0,102480.0,0.66381875]
[1747313862692,0.101,102490.0,102480.0,0.87593875]
[1747313866661,0.101,102490.0,102480.0,0.66381875]
[1747313866866,0.101,102490.0,102480.0,0.87581875]
[1747313867220,0.101,102490.0,102480.0,0.8612779]
[1747313868140,0.101,102490.0,102480.0,0.6492779]
[1747313868819,0.101,102490.0,102480.0,0.8612379]
[1747313871000,0.101,102490.0,102480.0,0.8611579]
[1747313878487,0.101,102490.0,102480.0,0.8609179]
[1747313886077,0.10587833,102500.0,102490.0,0.22441097]
[1747313886229,0.13727833,102500.0,102490.0,0.32172037]
[1747313886436,0.13727833,102500.0,102490.0,0.32172046]
[1747313886762,0.13727833,102500.0,102490.0,0.33147684]
[1747313886992,0.12752309,102500.0,102490.0,0.33147684]
[1747313887750,0.12852309,102500.0,102490.0,0.33647684]
[1747313888390,0.13827833,102500.0,102490.0,0.34147684]
[1747313888794,0.13827833,102500.0,102490.0,0.33172046]
[1747313888975,0.13827833,102500.0,102490.0,0.34147703]
[1747313889182,0.13827833,102500.0,102490.0,0.35123341]
[1747313889845,0.12852309,102500.0,102490.0,0.35123341]
[1747313891071,0.14803423,102500.0,102490.0,0.1073094]
[1747313891223,0.14803423,102500.0,102490.0,0.31220742]
[1747313891444,0.41979879,102500.0,102490.0,0.1073094]
[1747313891628,0.41979879,102500.0,102490.0,0.01]
[1747313891629,0.40918462,102500.0,102490.0,0.01]
[1747313892025,0.42857827,102500.0,102490.0,0.01]
[1747313892450,0.24695431,102490.0,102480.0,0.04888067]
[1747313892792,0.25671107,102490.0,102480.0,0.04888067]
[1747313892995,0.26646773,102490.0,102480.0,0.04888067]
[1747313893161,0.25671078,102490.0,102480.0,0.04888067]
[1747313893382,0.26646763,102490.0,102480.0,0.04888067]
[1747313893587,0.25671125,102490.0,102480.0,0.04888067]
[1747313893792,0.25771125,102490.0,102480.0,0.05288067]
[1747313894530,0.25771125,102490.0,102480.0,0.2480407]
[1747313894531,0.23819736,102490.0,102480.0,0.2480407]
[1747313894768,0.24795383,102490.0,102480.0,0.2577987]
[1747313894969,0.001,102490.0,102480.0,0.28707117]
[1747313895170,0.001,102490.0,102480.0,0.29007117]
[1747313895940,0.001,102490.0,102480.0,0.32207117]
[1747313896995,0.001,102490.0,102480.0,0.30657117]
[1747313901222,0.001,102490.0,102480.0,0.41898057]
[1747313904737,0.101,102490.0,102480.0,0.41898057]
[1747313909368,0.101,102490.0,102480.0,0.64428142]
[1747313909785,0.101,102490.0,102480.0,0.85580142]
[1747313911932,0.101,102490.0,102480.0,0.88224299]
[1747313912907,0.101,102490.0,102480.0,1.28115985]
[1747313913425,0.07839818,102520.0,102510.0,0.22436719]
[1747313913627,0.07839818,102520.0,102510.0,0.30156547]
[1747313914270,0.07839818,102520.0,102510.0,0.28596547]
[1747313914485,0.07839818,102520.0,102510.0,0.26976547]
[1747313915837,0.07839818,102520.0,102510.0,0.28616547]
[1747313916257,0.07839818,102520.0,102510.0,0.27076547]
[1747313917247,0.07839818,102520.0,102510.0,0.28726547]
[1747313917489,0.00048243,102520.0,102510.0,0.28726547]
[1747313917872,0.00048243,102520.0,102510.0,0.27076547]
[1747313918586,0.00048243,102520.0,102510.0,0.30176547]
[1747313918794,0.10048243,102520.0,102510.0,0.30176547]
[1747313918987,0.10048243,102520.0,102510.0,0.39907487]
[1747313919695,0.10048243,102520.0,102510.0,0.38397487]
[1747313921326,0.10048243,102520.0,102510.0,0.36807487]
[1747313924146,0.10048243,102520.0,102510.0,0.40027487]
[1747313924718,0.10048243,102520.0,102510.0,0.38417487]
[1747313925665,0.10048243,102520.0,102510.0,0.36807487]
[1747313927103,0.10048243,102520.0,102510.0,0.38367487]
[1747313928905,0.10048243,102520.0,102510.0,0.36807487]
[1747313936069,0.10048243,102520.0,102510.0,0.39957487]
[1747313936426,0.10048243,102520.0,102510.0,0.40058632]
[1747313937007,0.10048243,102520.0,102510.0,0.39958632]
[1747313937213,0.10048243,102520.0,102510.0,0.40258632]
[1747313937412,0.10048243,102520.0,102510.0,0.40458632]
[1747313940335,0.10048243,102520.0,102510.0,0.41912717]
[1747313941903,0.22632737,102550.0,102540.0,0.21455012]
[1747313942116,0.24582862,102550.0,102540.0,0.26877233]
[1747313943744,0.25557948,102550.0,102540.0,0.25902042]
[1747313944369,0.24682862,102550.0,102540.0,0.26877233]
[1747313945294,0.24682862,102550.0,102540.0,0.25902042]
[1747313946020,0.25657948,102550.0,102540.0,0.25902042]
[1747313946432,0.2663312,102550.0,102540.0,0.0444703]
[1747313946642,0.25657996,102550.0,102540.0,0.24926832]
[1747313948355,0.25657996,102550.0,102540.0,0.23951613]
[1747313948598,0.25657996,102550.0,102540.0,0.25902061]
[1747313949160,0.246829,102550.0,102540.0,0.25902061]
[1747313949335,0.246829,102550.0,102540.0,0.26877271]
[1747313949540,0.246229,102550.0,102540.0,0.26877271]
[1747313950122,0.246229,102550.0,102540.0,0.27852471]
[1747313950529,0.23102862,102550.0,102540.0,0.27852471]
[1747313950736,0.001,102550.0,102540.0,0.28827643]
[1747313950939,0.101,102550.0,102540.0,0.41828516]
[1747313952507,0.1,102550.0,102540.0,0.42028516]
[1747313952935,0.1,102550.0,102540.0,0.63084516]
[1747313954590,0.29502681,102550.0,102540.0,0.40498516]
[1747313954713,0.1,102550.0,102540.0,0.82378516]
[1747313954909,0.1,102550.0,102540.0,0.82374516]
[1747313955369,0.1,102550.0,102540.0,0.80734516]
[1747313956059,0.1,102550.0,102540.0,0.83954516]
[1747313962185,0.1,102550.0,102540.0,0.85408601]
[1747313966619,0.1,102550.0,102540.0,0.43532601]
[1747313966796,0.1,102550.0,102540.0,0.85364601]
[1747313969372,0.1,102550.0,102540.0,0.61470516]
[1747313969581,0.1,102550.0,102540.0,0.82342516]
[1747313969792,0.1,102550.0,102540.0,0.82338516]
[1747313969930,0.1,102550.0,102540.0,0.42078516]
[1747313970129,0.1,102550.0,102540.0,0.83898516]
[1747313971147,0.1,102550.0,102540.0,0.82338516]
[1747313972712,0.1,102550.0,102540.0,0.80678516]
[1747313973031,0.1,102550.0,102540.0,0.80670516]
[1747313976102,0.13846462,102560.0,102550.0,0.22427968]
[1747313976322,0.33347242,102560.0,102550.0,0.27357317]
[1747313976490,0.13846462,102560.0,102550.0,0.27357317]
[1747313976917,0.1287149,102560.0,102550.0,0.27357317]
[1747313977287,0.1287149,102560.0,102550.0,0.27371746]
[1747313977721,0.05079915,102560.0,102550.0,0.27371746]
[1747313979116,0.04104953,102560.0,102550.0,0.27371746]
[1747313979810,0.0313,102560.0,102550.0,0.27371746]
[1747313986879,0.1313,102560.0,102550.0,0.27371746]
[1747313987543,0.1159,102560.0,102550.0,0.27371746]
[1747313988265,0.1314,102560.0,102550.0,0.27371746]
[1747313988859,0.1159,102560.0,102550.0,0.27371746]
[1747313989071,0.38882355,102560.0,102550.0,0.04943778]
[1747313989225,0.80966313,102560.0,102550.0,0.00014429]
[1747313989450,0.89691275,102560.0,102550.0,0.00014429]
[1747313990145,0.71385995,102560.0,102550.0,0.00014429]
[1747313991442,0.80973273,102560.0,102550.0,0.00014429]
[1747313992387,0.73181698,102560.0,102550.0,0.00014429]
[1747313992636,0.94029698,102560.0,102550.0,0.00014429]
[1747313992850,0.4528914,102560.0,102550.0,0.00014429]
[1747313993446,0.4431413,102560.0,102550.0,0.00014429]
[1747313997337,0.355582,102560.0,102550.0,0.00014429]
[1747313998784,0.1,102560.0,102550.0,0.22442397]
[1747313999094,0.31450752,102560.0,102550.0,0.25857051]
[1747313999465,0.31450752,102560.0,102550.0,0.25857061]
[1747313999819,0.32425762,102560.0,102550.0,0.25857061]
[1747314000001,0.31450743,102560.0,102550.0,0.26832147]
[1747314000204,0.30475752,102560.0,102550.0,0.27807224]
[1747314000406,0.1,102560.0,102550.0,0.32022291]
[1747314002811,0.30475742,102560.0,102550.0,0.30382291]
[1747314003012,0.30475742,102560.0,102550.0,0.04404141]
[1747314003013,0.36550782,102560.0,102550.0,0.04404141]
[1747314003255,0.3557582,102560.0,102550.0,0.04404141]
[1747314003489,0.34600781,102560.0,102550.0,0.05379275]
[1747314003720,0.3557581,102560.0,102550.0,0.05379275]
[1747314003892,0.3557581,102560.0,102550.0,0.04404141]
[1747314004134,0.3557581,102560.0,102550.0,0.05379275]
[1747314004307,0.72224317,102560.0,102550.0,0.00014429]
[1747314004504,0.44331759,102560.0,102550.0,0.00014429]
[1747314004930,0.72224317,102560.0,102550.0,0.00014429]
[1747314005162,0.13856017,102560.0,102550.0,0.00014429]
[1747314005358,0.32467633,102560.0,102550.0,0.00014429]
[1747314005487,0.32381787,102560.0,102550.0,0.00014429]
[1747314006564,0.60274345,102560.0,102550.0,0.00014429]
[1747314006984,0.53121787,102560.0,102550.0,0.00014429]
[1747314007188,0.0164,102560.0,102550.0,0.1951711]
[1747314007394,0.1950078,102560.0,102550.0,0.28402162]
[1747314007597,0.46125139,102570.0,102560.0,0.20475819]
[1747314007812,0.21835376,102570.0,102560.0,0.21450829]
[1747314008022,0.02336383,102570.0,102560.0,0.25060801]
[1747314008237,0.0331125,102570.0,102560.0,0.25060801]
[1747314008432,0.02336383,102570.0,102560.0,0.30047425]
[1747314008589,0.02336383,102570.0,102560.0,0.31657425]
[1747314008787,0.02536383,102570.0,102560.0,0.31657425]
[1747314009188,0.02736383,102570.0,102560.0,0.31657425]
[1747314009627,0.02727509,102570.0,102560.0,0.31657425]
[1747314009857,0.02527509,102570.0,102560.0,0.31657425]
[1747314010061,0.02327509,102570.0,102560.0,0.31657425]
[1747314011781,0.49804791,102570.0,102560.0,0.04986624]
[1747314012028,0.21450733,102560.0,102550.0,0.00014429]
[1747314012241,0.224258,102560.0,102550.0,0.00014429]
[1747314012867,0.239958,102560.0,102550.0,0.00014429]
[1747314013075,0.255358,102560.0,102550.0,0.00014429]
[1747314013320,0.255358,102560.0,102550.0,0.00214429]
[1747314013321,0.24560809,102560.0,102550.0,0.00214429]
[1747314013754,0.24560809,102560.0,102550.0,0.00314429]
[1747314014369,0.23020809,102560.0,102550.0,0.00314429]
[1747314014771,0.24650809,102560.0,102550.0,0.00114429]
[1747314015095,0.62274307,102560.0,102550.0,0.00014429]
[1747314015870,0.61299307,102560.0,102550.0,0.00014429]
[1747314016480,0.3243172,102560.0,102550.0,0.00014429]
[1747314017899,0.60324278,102560.0,102550.0,0.00014429]
[1747314020184,0.3243172,102560.0,102550.0,0.00014429]
[1747314020384,0.3080172,102560.0,102550.0,0.00014429]
[1747314020590,0.3080172,102560.0,102550.0,0.21467349]
[1747314020808,0.32156731,102560.0,102550.0,0.04306654]
[1747314020954,0.33131741,102560.0,102550.0,0.04306654]
[1747314021602,0.33131741,102560.0,102550.0,0.23809335]
[1747314021603,0.31181692,102560.0,102550.0,0.23809335]
[1747314021762,0.32156702,102560.0,102550.0,0.23809335]
[1747314021963,0.32156702,102560.0,102550.0,0.25759574]
[1747314022186,0.32156702,102560.0,102550.0,0.24784459]
[1747314022386,0.33131731,102560.0,102550.0,0.04306654]
[1747314022935,0.33816759,102560.0,102550.0,0.00014429]
[1747314024058,0.62264317,102560.0,102550.0,0.00014429]
[1747314024176,0.61289307,102560.0,102550.0,0.00014429]
[1747314024382,0.81973307,102560.0,102550.0,0.00014429]
[1747314025842,1.15973307,102560.0,102550.0,0.00014429]
[1747314026260,1.16173307,102560.0,102550.0,0.00014429]
[1747314026462,1.25904247,102560.0,102550.0,0.00014429]
[1747314026671,1.17627392,102560.0,102550.0,0.00014429]
[1747314026882,1.17827392,102560.0,102550.0,0.00014429]
[1747314036976,1.17627392,102560.0,102550.0,0.00014429]
[1747314037441,1.17827392,102560.0,102550.0,0.00014429]
[1747314037657,1.18127392,102560.0,102550.0,0.00014429]
[1747314038066,1.27858332,102560.0,102550.0,0.00014429]
[1747314038581,1.07174332,102560.0,102550.0,0.00014429]
[1747314038790,1.48458332,102560.0,102550.0,0.00014429]
[1747314040207,1.54310332,102560.0,102550.0,0.00014429]
[1747314041718,1.44579392,102560.0,102550.0,0.00014429]
[1747314044166,0.22432342,102530.0,102520.0,0.0118531]
[1747314044304,0.22432342,102530.0,102520.0,0.02769753]
[1747314044743,0.59080583,102530.0,102520.0,0.02769753]
[1747314044947,0.60052058,102530.0,102520.0,0.01199753]
[1747314045376,0.60052058,102530.0,102520.0,0.00014443]
[1747314045536,0.63162058,102530.0,102520.0,0.00014443]
[1747314046598,0.97162058,102530.0,102520.0,0.00014443]
[1747314047725,0.98606564,102530.0,102520.0,0.00014443]
[1747314048524,1.00060649,102530.0,102520.0,0.00014443]
[1747314048675,1.09791589,102530.0,102520.0,0.00514443]
[1747314048897,1.09791589,102530.0,102520.0,0.00214443]
[1747314049536,1.09791589,102530.0,102520.0,0.00314443]
[1747314049749,1.00060649,102530.0,102520.0,0.00314443]
[1747314049980,0.97096564,102530.0,102520.0,0.00314443]
[1747314050169,1.36752564,102530.0,102520.0,0.01934443]
[1747314050377,1.08860006,102530.0,102520.0,0.01934443]
[1747314050585,0.88251949,102530.0,102520.0,0.03484443]
[1747314050791,0.87782738,102530.0,102520.0,0.06086661]
[1747314051006,1.14700039,102530.0,102520.0,0.00314443]
[1747314051218,1.16260039,102530.0,102520.0,0.00314443]